[Event "Titled Tuesday Blitz January 03 Early 2023"]
[White "Kobalia, Mikhail"]
[Black "Khoroshev, Nikita"]
[WhiteFideId "4119150"]
[BlackFideId "14200287"]
[WhiteElo "2578"]
[BlackElo "2336"]
[Result "1/2-1/2"]
[Round "10"]
[TimeControl "180+2"]
[Date "2023.01.03"]
[WhiteClock "0:00:11"]
[BlackClock "0:00:52"]

1. e4 {[%clk 0:02:57]}  c5 {[%clk 0:02:54]} 2. Nf3 {[%clk 0:02:56]}  e6 {[%clk 0:02:54]} 3. d4 {[%clk 0:02:56]}  cxd4 {[%clk 0:02:55]} 4. Nxd4 {[%clk 0:02:57]}  Nf6 {[%clk 0:02:56]} 5. Nc3 {[%clk 0:02:56]}  Nc6 {[%clk 0:02:57]} 6. Ndb5 {[%clk 0:02:56]}  Bb4 {[%clk 0:02:56]} 7. a3 {[%clk 0:02:56]}  Bxc3+ {[%clk 0:02:56]} 8. Nxc3 {[%clk 0:02:57]}  d5 {[%clk 0:02:56]} 9. exd5 {[%clk 0:02:55]}  exd5 {[%clk 0:02:57]} 10. Bd3 {[%clk 0:02:54]}  O-O {[%clk 0:02:55]} 11. O-O {[%clk 0:02:54]}  Bg4 {[%clk 0:02:54]} 12. f3 {[%clk 0:02:52]}  Bh5 {[%clk 0:02:54]} 13. Kh1 {[%clk 0:02:52]}  d4 {[%clk 0:02:42]} 14. Ne2 {[%clk 0:02:50]}  Nd5 {[%clk 0:02:29]} 15. Nf4 {[%clk 0:02:45]}  Nxf4 {[%clk 0:02:28]} 16. Bxf4 {[%clk 0:02:44]}  Bg6 {[%clk 0:02:28]} 17. Re1 {[%clk 0:02:43]}  Qd5 {[%clk 0:02:25]} 18. Qe2 {[%clk 0:02:20]}  Bxd3 {[%clk 0:02:08]} 19. cxd3 {[%clk 0:02:18]}  f6 {[%clk 0:02:05]} 20. Kg1 {[%clk 0:01:57]}  Rfe8 {[%clk 0:01:47]} 21. Qc2 {[%clk 0:01:48]}  Kf7 {[%clk 0:01:44]} 22. Re4 {[%clk 0:01:46]}  f5 {[%clk 0:01:42]} 23. Rxe8 {[%clk 0:01:36]}  Rxe8 {[%clk 0:01:43]} 24. Kf2 {[%clk 0:01:36]}  h6 {[%clk 0:01:40]} 25. h4 {[%clk 0:01:35]}  a5 {[%clk 0:01:37]} 26. h5 {[%clk 0:01:34]}  Re6 {[%clk 0:01:33]} 27. Rc1 {[%clk 0:01:30]}  Ke7 {[%clk 0:01:29]} 28. Qc5+ {[%clk 0:01:28]}  Qxc5 {[%clk 0:01:28]} 29. Rxc5 {[%clk 0:01:29]}  Kf6 {[%clk 0:01:24]} 30. Rb5 {[%clk 0:01:28]}  Re7 {[%clk 0:01:24]} 31. Rd5 {[%clk 0:01:08]}  Ke6 {[%clk 0:01:20]} 32. Rd6+ {[%clk 0:00:57]}  Kf7 {[%clk 0:01:21]} 33. Bd2 {[%clk 0:00:54]}  Re6 {[%clk 0:01:18]} 34. Rd5 {[%clk 0:00:54]}  Kf6 {[%clk 0:01:16]} 35. Bxa5 {[%clk 0:00:49]}  Re3 {[%clk 0:01:15]} 36. Rb5 {[%clk 0:00:24]}  Rxd3 {[%clk 0:01:13]} 37. Be1 {[%clk 0:00:18]}  Rd1 {[%clk 0:01:03]} 38. Ke2 {[%clk 0:00:17]}  Rb1 {[%clk 0:01:02]} 39. Bh4+ {[%clk 0:00:16]}  Ke6 {[%clk 0:01:01]} 40. Rxb7 {[%clk 0:00:15]}  Ne5 {[%clk 0:01:00]} 41. Bg3 {[%clk 0:00:14]}  Nc4 {[%clk 0:00:53]} 42. Rb4 {[%clk 0:00:13]}  Rxb2+ {[%clk 0:00:46]} 43. Rxb2 {[%clk 0:00:13]}  Nxb2 {[%clk 0:00:46]} 44. Be1 {[%clk 0:00:06]}  Kd5 {[%clk 0:00:46]} 45. Bb4 {[%clk 0:00:06]}  Nc4 {[%clk 0:00:43]} 46. Bf8 {[%clk 0:00:04]}  Ne3 {[%clk 0:00:43]} 47. g3 {[%clk 0:00:03]}  f4 {[%clk 0:00:37]} 48. g4 {[%clk 0:00:02]}  Kc4 {[%clk 0:00:36]} 49. Bxg7 {[%clk 0:00:02]}  d3+ {[%clk 0:00:36]} 50. Kd2 {[%clk 0:00:02]}  Nf1+ {[%clk 0:00:36]} 51. Ke1 {[%clk 0:00:02]}  Nh2 {[%clk 0:00:36]} 52. Bxh6 {[%clk 0:00:02]}  Nxf3+ {[%clk 0:00:36]} 53. Kd1 {[%clk 0:00:02]}  Ne5 {[%clk 0:00:35]} 54. Bxf4 {[%clk 0:00:02]}  Nxg4 {[%clk 0:00:36]} 55. h6 {[%clk 0:00:02]}  Nxh6 {[%clk 0:00:35]} 56. Bxh6 {[%clk 0:00:02]}  Kb3 {[%clk 0:00:36]} 57. Bf8 {[%clk 0:00:02]}  Ka4 {[%clk 0:00:37]} 58. Bb4 {[%clk 0:00:03]}  d2 {[%clk 0:00:37]} 59. Kxd2 {[%clk 0:00:04]}  Kb5 {[%clk 0:00:37]} 60. Kd3 {[%clk 0:00:04]}  Ka6 {[%clk 0:00:38]} 61. Kd4 {[%clk 0:00:05]}  Kb7 {[%clk 0:00:39]} 62. Kd5 {[%clk 0:00:06]}  Ka8 {[%clk 0:00:40]} 63. Kc5 {[%clk 0:00:07]}  Kb7 {[%clk 0:00:41]} 64. Kb5 {[%clk 0:00:07]}  Ka8 {[%clk 0:00:42]} 65. Ka6 {[%clk 0:00:07]}  Kb8 {[%clk 0:00:42]} 66. Bc5 {[%clk 0:00:08]}  Ka8 {[%clk 0:00:43]} 67. Bb6 {[%clk 0:00:09]}  Kb8 {[%clk 0:00:44]} 68. Ba7+ {[%clk 0:00:10]}  Ka8 {[%clk 0:00:45]} 69. Bb6 {[%clk 0:00:10]}  Kb8 {[%clk 0:00:45]} 70. Bc7+ {[%clk 0:00:10]}  Ka8 {[%clk 0:00:46]} 71. Bb8 {[%clk 0:00:11]}  Kxb8 {[%clk 0:00:47]} 72. Kb5 {[%clk 0:00:11]}  Ka8 {[%clk 0:00:48]} 73. a4 {[%clk 0:00:10]}  Kb8 {[%clk 0:00:49]} 74. a5 {[%clk 0:00:11]}  Ka8 {[%clk 0:00:50]} 75. a6 {[%clk 0:00:11]}  Kb8 {[%clk 0:00:51]} 76. a7+ {[%clk 0:00:12]}  Ka8 {[%clk 0:00:52]} 77. Kc5 {[%clk 0:00:11]}  Kxa7 {[%clk 0:00:52]} 1/2-1/2


[Site "https://www.chess.com"]

[Event "Titled Tuesday Blitz January 03 Early 2023"]
[White "Pakleza, Zbigniew"]
[Black "Renjith, Sravan"]
[WhiteFideId "1119290"]
[BlackFideId "4306783"]
[WhiteElo "2494"]
[BlackElo "2172"]
[Result "1-0"]
[Round "10"]
[TimeControl "180+2"]
[Date "2023.01.03"]
[WhiteClock "0:00:27"]
[BlackClock "0:00:16"]

1. d4 {[%clk 0:03:00]}  Nf6 {[%clk 0:02:59]} 2. Nf3 {[%clk 0:03:01]}  d6 {[%clk 0:02:53]} 3. Bf4 {[%clk 0:03:01]}  Nbd7 {[%clk 0:02:51]} 4. h3 {[%clk 0:03:01]}  g6 {[%clk 0:02:50]} 5. e3 {[%clk 0:03:01]}  Bg7 {[%clk 0:02:48]} 6. Be2 {[%clk 0:03:01]}  O-O {[%clk 0:02:49]} 7. O-O {[%clk 0:03:01]}  c6 {[%clk 0:02:44]} 8. c4 {[%clk 0:03:01]}  Re8 {[%clk 0:02:36]} 9. Nc3 {[%clk 0:03:01]}  Qc7 {[%clk 0:02:24]} 10. Bh2 {[%clk 0:03:00]}  e5 {[%clk 0:02:21]} 11. c5 {[%clk 0:02:58]}  Nd5 {[%clk 0:02:01]} 12. cxd6 {[%clk 0:02:36]}  Qxd6 {[%clk 0:02:01]} 13. dxe5 {[%clk 0:02:33]}  Qe6 {[%clk 0:01:38]} 14. Nd4 {[%clk 0:02:22]}  Qe7 {[%clk 0:01:37]} 15. Nxd5 {[%clk 0:02:19]}  cxd5 {[%clk 0:01:38]} 16. Nb5 {[%clk 0:01:35]}  Nxe5 {[%clk 0:01:28]} 17. Qxd5 {[%clk 0:01:34]}  Be6 {[%clk 0:01:28]} 18. Qd6 {[%clk 0:01:33]}  Bc4 {[%clk 0:00:58]} 19. Rfe1 {[%clk 0:01:18]}  a6 {[%clk 0:00:36]} 20. Qxe7 {[%clk 0:01:13]}  Rxe7 {[%clk 0:00:37]} 21. Nd4 {[%clk 0:01:14]}  Bxe2 {[%clk 0:00:34]} 22. Rxe2 {[%clk 0:01:13]}  Nc4 {[%clk 0:00:34]} 23. Rc1 {[%clk 0:01:06]}  b5 {[%clk 0:00:32]} 24. b3 {[%clk 0:01:00]}  Bxd4 {[%clk 0:00:26]} 25. bxc4 {[%clk 0:01:01]}  Rc8 {[%clk 0:00:26]} 26. Rec2 {[%clk 0:00:57]}  Rxc4 {[%clk 0:00:20]} 27. Rxc4 {[%clk 0:00:53]}  bxc4 {[%clk 0:00:20]} 28. exd4 {[%clk 0:00:53]}  c3 {[%clk 0:00:15]} 29. Kf1 {[%clk 0:00:51]}  Rb7 {[%clk 0:00:15]} 30. Rxc3 {[%clk 0:00:48]}  Rb1+ {[%clk 0:00:16]} 31. Ke2 {[%clk 0:00:48]}  Rb2+ {[%clk 0:00:16]} 32. Ke3 {[%clk 0:00:49]}  Rxa2 {[%clk 0:00:17]} 33. d5 {[%clk 0:00:48]}  Kf8 {[%clk 0:00:17]} 34. Be5 {[%clk 0:00:37]}  Ke8 {[%clk 0:00:18]} 35. Rc7 {[%clk 0:00:35]}  Ra3+ {[%clk 0:00:18]} 36. Kd4 {[%clk 0:00:33]}  Ra4+ {[%clk 0:00:18]} 37. Kc5 {[%clk 0:00:33]}  Kd8 {[%clk 0:00:16]} 38. Kd6 {[%clk 0:00:30]}  f6 {[%clk 0:00:17]} 39. Bxf6+ {[%clk 0:00:30]}  Ke8 {[%clk 0:00:17]} 40. Re7+ {[%clk 0:00:29]}  Kf8 {[%clk 0:00:17]} 41. Rxh7 {[%clk 0:00:29]}  Rf4 {[%clk 0:00:16]} 42. Ke6 {[%clk 0:00:27]}  Re4+ {[%clk 0:00:16]} 43. Be5 {[%clk 0:00:27]} 1-0


[Site "https://www.chess.com"]

[Event "Titled Tuesday Blitz January 03 Early 2023"]
[White "Sychev, Klementy"]
[Black "Mihajlov, Sebastian"]
[WhiteFideId "4114060"]
[BlackFideId "1512110"]
[WhiteElo "2547"]
[BlackElo "2373"]
[Result "1-0"]
[Round "10"]
[TimeControl "180+2"]
[Date "2023.01.03"]
[WhiteClock "0:00:09"]
[BlackClock "0:00:11"]

1. e4 {[%clk 0:03:00]}  e5 {[%clk 0:03:00]} 2. f4 {[%clk 0:02:57]}  d5 {[%clk 0:02:59]} 3. exd5 {[%clk 0:02:56]}  c6 {[%clk 0:03:00]} 4. d4 {[%clk 0:02:42]}  exd4 {[%clk 0:02:53]} 5. Nf3 {[%clk 0:02:33]}  Qxd5 {[%clk 0:02:49]} 6. Qxd4 {[%clk 0:02:21]}  Nf6 {[%clk 0:02:46]} 7. Nc3 {[%clk 0:02:13]}  Qe6+ {[%clk 0:02:33]} 8. Be2 {[%clk 0:02:06]}  Nbd7 {[%clk 0:02:16]} 9. Ng5 {[%clk 0:01:58]}  Qe7 {[%clk 0:02:03]} 10. Bd2 {[%clk 0:01:38]}  h6 {[%clk 0:01:59]} 11. Nge4 {[%clk 0:01:36]}  Nxe4 {[%clk 0:01:56]} 12. Nxe4 {[%clk 0:01:37]}  Nc5 {[%clk 0:01:54]} 13. Nc3 {[%clk 0:01:26]}  Bg4 {[%clk 0:01:51]} 14. O-O-O {[%clk 0:01:20]}  Bxe2 {[%clk 0:01:38]} 15. Nxe2 {[%clk 0:01:08]}  Qe4 {[%clk 0:01:10]} 16. Rhe1 {[%clk 0:00:56]}  Qxd4 {[%clk 0:00:58]} 17. Nxd4+ {[%clk 0:00:57]}  Kd7 {[%clk 0:00:59]} 18. Ba5 {[%clk 0:00:38]}  b6 {[%clk 0:00:42]} 19. Ne6+ {[%clk 0:00:13]}  Kc8 {[%clk 0:00:40]} 20. Nxf8 {[%clk 0:00:10]}  Rxf8 {[%clk 0:00:39]} 21. Bc3 {[%clk 0:00:11]}  Kb7 {[%clk 0:00:31]} 22. Re7+ {[%clk 0:00:10]}  Ka6 {[%clk 0:00:31]} 23. Bxg7 {[%clk 0:00:11]}  Rg8 {[%clk 0:00:30]} 24. Rxf7 {[%clk 0:00:10]}  Ne6 {[%clk 0:00:31]} 25. Be5 {[%clk 0:00:07]}  Rxg2 {[%clk 0:00:28]} 26. f5 {[%clk 0:00:08]}  Ng5 {[%clk 0:00:23]} 27. Re7 {[%clk 0:00:04]}  Nf3 {[%clk 0:00:18]} 28. Bc3 {[%clk 0:00:04]}  Nxh2 {[%clk 0:00:17]} 29. f6 {[%clk 0:00:04]}  Rf2 {[%clk 0:00:16]} 30. f7 {[%clk 0:00:04]}  Rf8 {[%clk 0:00:15]} 31. Rdd7 {[%clk 0:00:04]}  Rf1+ {[%clk 0:00:15]} 32. Kd2 {[%clk 0:00:04]}  Rf2+ {[%clk 0:00:10]} 33. Ke1 {[%clk 0:00:04]}  Rf1+ {[%clk 0:00:10]} 34. Ke2 {[%clk 0:00:04]}  Kb5 {[%clk 0:00:10]} 35. b3 {[%clk 0:00:03]}  Rf5 {[%clk 0:00:08]} 36. a4+ {[%clk 0:00:02]}  Kc5 {[%clk 0:00:09]} 37. Bg7 {[%clk 0:00:02]}  R8xf7 {[%clk 0:00:06]} 38. Rxf7 {[%clk 0:00:02]}  Rg5 {[%clk 0:00:06]} 39. Bxh6 {[%clk 0:00:01]}  Rg2+ {[%clk 0:00:07]} 40. Ke1 {[%clk 0:00:01]}  Ng4 {[%clk 0:00:08]} 41. Kf1 {[%clk 0:00:02]}  Rxc2 {[%clk 0:00:08]} 42. Bg7 {[%clk 0:00:02]}  Kb4 {[%clk 0:00:07]} 43. Ke1 {[%clk 0:00:02]}  Kxb3 {[%clk 0:00:07]} 44. Rf3+ {[%clk 0:00:03]}  Ka2 {[%clk 0:00:06]} 45. Rd4 {[%clk 0:00:04]}  Nh2 {[%clk 0:00:06]} 46. Rf2 {[%clk 0:00:04]}  Rxf2 {[%clk 0:00:03]} 47. Kxf2 {[%clk 0:00:05]}  c5 {[%clk 0:00:04]} 48. Rf4 {[%clk 0:00:04]}  Kb3 {[%clk 0:00:03]} 49. Kg2 {[%clk 0:00:05]}  c4 {[%clk 0:00:04]} 50. Kxh2 {[%clk 0:00:05]}  c3 {[%clk 0:00:05]} 51. Bxc3 {[%clk 0:00:05]}  Kxc3 {[%clk 0:00:05]} 52. Rf7 {[%clk 0:00:05]}  a5 {[%clk 0:00:04]} 53. Rb7 {[%clk 0:00:05]}  Kb4 {[%clk 0:00:05]} 54. Rxb6+ {[%clk 0:00:05]}  Kxa4 {[%clk 0:00:06]} 55. Kg3 {[%clk 0:00:06]}  Ka3 {[%clk 0:00:07]} 56. Kf3 {[%clk 0:00:07]}  a4 {[%clk 0:00:07]} 57. Ke2 {[%clk 0:00:07]}  Ka2 {[%clk 0:00:08]} 58. Kd3 {[%clk 0:00:08]}  a3 {[%clk 0:00:09]} 59. Kc3 {[%clk 0:00:08]}  Ka1 {[%clk 0:00:10]} 60. Kb3 {[%clk 0:00:08]}  a2 {[%clk 0:00:11]} 61. Rg6 {[%clk 0:00:09]} 1-0


[Site "https://www.chess.com"]

[Event "Titled Tuesday Blitz January 03 Early 2023"]
[White "Vaibhav, Suri"]
[Black "Sielecki, Christof"]
[WhiteFideId "5045185"]
[BlackFideId "4620437"]
[WhiteElo "2595"]
[BlackElo "2419"]
[Result "1-0"]
[Round "10"]
[TimeControl "180+2"]
[Date "2023.01.03"]
[WhiteClock "0:00:33"]
[BlackClock "0:00:02"]

1. Nf3 {[%clk 0:03:00]}  d5 {[%clk 0:02:56]} 2. e3 {[%clk 0:02:58]}  Nf6 {[%clk 0:02:54]} 3. c4 {[%clk 0:02:59]}  e6 {[%clk 0:02:54]} 4. b3 {[%clk 0:02:59]}  Nbd7 {[%clk 0:02:48]} 5. Bb2 {[%clk 0:02:59]}  Bd6 {[%clk 0:02:48]} 6. Qc2 {[%clk 0:02:58]}  a6 {[%clk 0:02:46]} 7. Be2 {[%clk 0:02:55]}  Qe7 {[%clk 0:02:45]} 8. O-O {[%clk 0:02:53]}  O-O {[%clk 0:02:44]} 9. Nc3 {[%clk 0:02:45]}  Re8 {[%clk 0:02:29]} 10. d4 {[%clk 0:02:44]}  b6 {[%clk 0:02:05]} 11. e4 {[%clk 0:02:43]}  dxe4 {[%clk 0:01:55]} 12. Nxe4 {[%clk 0:02:44]}  Bb7 {[%clk 0:01:51]} 13. Bd3 {[%clk 0:02:34]}  Nxe4 {[%clk 0:01:47]} 14. Bxe4 {[%clk 0:02:35]}  Bxe4 {[%clk 0:01:47]} 15. Qxe4 {[%clk 0:02:35]}  Nf6 {[%clk 0:01:45]} 16. Qe2 {[%clk 0:02:11]}  Ba3 {[%clk 0:01:43]} 17. Bxa3 {[%clk 0:01:58]}  Qxa3 {[%clk 0:01:43]} 18. Ne5 {[%clk 0:01:58]}  a5 {[%clk 0:01:43]} 19. Nc6 {[%clk 0:01:52]}  Qd6 {[%clk 0:01:30]} 20. Qf3 {[%clk 0:01:51]}  h6 {[%clk 0:01:25]} 21. Rfe1 {[%clk 0:01:50]}  Rac8 {[%clk 0:00:51]} 22. Re2 {[%clk 0:01:49]}  Nh7 {[%clk 0:00:33]} 23. h4 {[%clk 0:01:48]}  Nf8 {[%clk 0:00:32]} 24. h5 {[%clk 0:01:11]}  Nh7 {[%clk 0:00:32]} 25. g3 {[%clk 0:01:09]}  Nf6 {[%clk 0:00:31]} 26. Rae1 {[%clk 0:00:52]}  Nxh5 {[%clk 0:00:31]} 27. c5 {[%clk 0:00:52]}  bxc5 {[%clk 0:00:18]} 28. dxc5 {[%clk 0:00:53]}  Qxc5 {[%clk 0:00:15]} 29. Re5 {[%clk 0:00:53]}  Qc2 {[%clk 0:00:15]} 30. Rxh5 {[%clk 0:00:52]}  Qxa2 {[%clk 0:00:12]} 31. Rd1 {[%clk 0:00:32]}  Qc2 {[%clk 0:00:02]} 32. Rd7 {[%clk 0:00:33]} 1-0


[Site "https://www.chess.com"]

[Event "Titled Tuesday Blitz January 03 Early 2023"]
[White "Korchmar, Vasiliy"]
[Black "Cella, Glaucio Dalla Cortt"]
[WhiteFideId "24131750"]
[BlackFideId "2119455"]
[WhiteElo "2438"]
[BlackElo "1894"]
[Result "1-0"]
[Round "10"]
[TimeControl "180+2"]
[Date "2023.01.03"]
[WhiteClock "0:01:06"]
[BlackClock "0:00:10"]

1. Nf3 {[%clk 0:03:00]}  c5 {[%clk 0:02:55]} 2. g3 {[%clk 0:03:00]}  e6 {[%clk 0:02:56]} 3. Bg2 {[%clk 0:03:00]}  Nf6 {[%clk 0:02:57]} 4. O-O {[%clk 0:03:00]}  d5 {[%clk 0:02:57]} 5. b3 {[%clk 0:03:00]}  Nc6 {[%clk 0:02:58]} 6. Bb2 {[%clk 0:02:59]}  Be7 {[%clk 0:02:58]} 7. e3 {[%clk 0:02:59]}  O-O {[%clk 0:02:58]} 8. c4 {[%clk 0:02:59]}  b6 {[%clk 0:02:56]} 9. cxd5 {[%clk 0:02:54]}  exd5 {[%clk 0:02:56]} 10. d4 {[%clk 0:02:53]}  Bb7 {[%clk 0:02:52]} 11. Nc3 {[%clk 0:02:49]}  cxd4 {[%clk 0:02:45]} 12. Nxd4 {[%clk 0:02:47]}  Nxd4 {[%clk 0:02:45]} 13. Qxd4 {[%clk 0:02:47]}  Bc5 {[%clk 0:02:44]} 14. Qd3 {[%clk 0:02:47]}  d4 {[%clk 0:02:16]} 15. Bxb7 {[%clk 0:02:41]}  dxc3 {[%clk 0:02:16]} 16. Qxc3 {[%clk 0:02:31]}  Rb8 {[%clk 0:02:13]} 17. Bf3 {[%clk 0:02:30]}  Qe7 {[%clk 0:02:06]} 18. Qe5 {[%clk 0:02:28]}  Qxe5 {[%clk 0:01:53]} 19. Bxe5 {[%clk 0:02:29]}  Rbd8 {[%clk 0:01:50]} 20. Rfd1 {[%clk 0:02:27]}  Be7 {[%clk 0:01:42]} 21. Rxd8 {[%clk 0:02:21]}  Rxd8 {[%clk 0:01:42]} 22. Rc1 {[%clk 0:02:21]}  Ne8 {[%clk 0:01:30]} 23. Rd1 {[%clk 0:02:16]}  Rxd1+ {[%clk 0:01:21]} 24. Bxd1 {[%clk 0:02:17]}  Bd6 {[%clk 0:01:21]} 25. Bc3 {[%clk 0:02:10]}  a5 {[%clk 0:01:11]} 26. f4 {[%clk 0:02:05]}  Nc7 {[%clk 0:01:08]} 27. Bf3 {[%clk 0:02:04]}  Nb5 {[%clk 0:01:06]} 28. Bd2 {[%clk 0:02:03]}  Bb4 {[%clk 0:01:02]} 29. Bc1 {[%clk 0:02:00]}  Kf8 {[%clk 0:00:45]} 30. Kf2 {[%clk 0:01:59]}  Ke7 {[%clk 0:00:34]} 31. e4 {[%clk 0:01:58]}  Bc5+ {[%clk 0:00:26]} 32. Be3 {[%clk 0:01:58]}  Bxe3+ {[%clk 0:00:20]} 33. Kxe3 {[%clk 0:01:59]}  Nc3 {[%clk 0:00:21]} 34. a3 {[%clk 0:01:52]}  Nb5 {[%clk 0:00:21]} 35. a4 {[%clk 0:01:51]}  Nc7 {[%clk 0:00:20]} 36. Kd4 {[%clk 0:01:43]}  f6 {[%clk 0:00:18]} 37. e5 {[%clk 0:01:41]}  fxe5+ {[%clk 0:00:19]} 38. Kxe5 {[%clk 0:01:33]}  g6 {[%clk 0:00:18]} 39. g4 {[%clk 0:01:33]}  Ne6 {[%clk 0:00:17]} 40. Bd5 {[%clk 0:01:30]}  Nc5 {[%clk 0:00:17]} 41. g5 {[%clk 0:01:28]}  Nd3+ {[%clk 0:00:17]} 42. Ke4 {[%clk 0:01:28]}  Nc5+ {[%clk 0:00:18]} 43. Kd4 {[%clk 0:01:24]}  Kd6 {[%clk 0:00:18]} 44. Bg8 {[%clk 0:01:24]}  Kc6 {[%clk 0:00:17]} 45. Kc4 {[%clk 0:01:15]}  Kd6 {[%clk 0:00:10]} 46. Bxh7 {[%clk 0:01:14]}  Ne4 {[%clk 0:00:10]} 47. Bxg6 {[%clk 0:01:13]}  Nd2+ {[%clk 0:00:11]} 48. Kc3 {[%clk 0:01:10]}  Nb1+ {[%clk 0:00:11]} 49. Bxb1 {[%clk 0:01:08]}  Ke7 {[%clk 0:00:10]} 50. f5 {[%clk 0:01:06]} 1-0


[Site "https://www.chess.com"]

[Event "Titled Tuesday Blitz January 03 Early 2023"]
[White "Liyanage, Ranindu Dilshan"]
[Black "Berezin, Viktor"]
[WhiteFideId "9915834"]
[BlackFideId "14107872"]
[WhiteElo "2342"]
[BlackElo "2307"]
[Result "1-0"]
[Round "10"]
[TimeControl "180+2"]
[Date "2023.01.03"]
[WhiteClock "0:00:11"]
[BlackClock "0:00:05"]

1. c4 {[%clk 0:02:54]}  Nf6 {[%clk 0:02:58]} 2. Nc3 {[%clk 0:02:53]}  g6 {[%clk 0:02:59]} 3. e4 {[%clk 0:02:46]}  d6 {[%clk 0:02:58]} 4. d4 {[%clk 0:02:46]}  Bg7 {[%clk 0:02:58]} 5. Nf3 {[%clk 0:02:46]}  O-O {[%clk 0:02:59]} 6. Be2 {[%clk 0:02:47]}  e5 {[%clk 0:02:59]} 7. Be3 {[%clk 0:02:47]}  Na6 {[%clk 0:02:55]} 8. O-O {[%clk 0:02:39]}  Ng4 {[%clk 0:02:52]} 9. Bg5 {[%clk 0:02:38]}  f6 {[%clk 0:02:48]} 10. Bc1 {[%clk 0:02:38]}  Qe8 {[%clk 0:02:47]} 11. Re1 {[%clk 0:02:28]}  Nh6 {[%clk 0:02:40]} 12. h3 {[%clk 0:02:23]}  Nf7 {[%clk 0:02:37]} 13. Be3 {[%clk 0:02:18]}  c6 {[%clk 0:02:31]} 14. Qc2 {[%clk 0:02:10]}  Bd7 {[%clk 0:02:26]} 15. Rad1 {[%clk 0:02:09]}  Rd8 {[%clk 0:02:26]} 16. dxe5 {[%clk 0:02:03]}  fxe5 {[%clk 0:02:17]} 17. Bxa7 {[%clk 0:02:02]}  Nb4 {[%clk 0:02:00]} 18. Qb3 {[%clk 0:01:58]}  c5 {[%clk 0:01:57]} 19. Bb6 {[%clk 0:01:41]}  Ra8 {[%clk 0:01:53]} 20. a3 {[%clk 0:01:36]}  Nc6 {[%clk 0:01:53]} 21. Nd5 {[%clk 0:01:36]}  Rc8 {[%clk 0:01:46]} 22. Qc3 {[%clk 0:01:29]}  Nd4 {[%clk 0:01:38]} 23. b4 {[%clk 0:01:28]}  Nd8 {[%clk 0:01:25]} 24. Bc7 {[%clk 0:01:22]}  Nf7 {[%clk 0:01:07]} 25. Nxd4 {[%clk 0:01:22]}  exd4 {[%clk 0:01:06]} 26. Qg3 {[%clk 0:01:21]}  Bc6 {[%clk 0:00:47]} 27. Bxd6 {[%clk 0:01:12]}  Nxd6 {[%clk 0:00:47]} 28. Qxd6 {[%clk 0:01:13]}  Be5 {[%clk 0:00:22]} 29. Ne7+ {[%clk 0:01:10]}  Kf7 {[%clk 0:00:18]} 30. Qxe5 {[%clk 0:01:10]}  Qxe7 {[%clk 0:00:19]} 31. Qxe7+ {[%clk 0:01:05]}  Kxe7 {[%clk 0:00:20]} 32. bxc5 {[%clk 0:01:05]}  Rcd8 {[%clk 0:00:18]} 33. Bd3 {[%clk 0:01:01]}  Ke6 {[%clk 0:00:17]} 34. h4 {[%clk 0:00:54]}  h6 {[%clk 0:00:16]} 35. g3 {[%clk 0:00:46]}  Ke5 {[%clk 0:00:17]} 36. f4+ {[%clk 0:00:45]}  Ke6 {[%clk 0:00:17]} 37. Rf1 {[%clk 0:00:42]}  g5 {[%clk 0:00:16]} 38. hxg5 {[%clk 0:00:37]}  hxg5 {[%clk 0:00:17]} 39. Kg2 {[%clk 0:00:38]}  gxf4 {[%clk 0:00:14]} 40. gxf4 {[%clk 0:00:39]}  Rh8 {[%clk 0:00:14]} 41. Rh1 {[%clk 0:00:37]}  Rhg8+ {[%clk 0:00:08]} 42. Kf3 {[%clk 0:00:37]}  Ra8 {[%clk 0:00:09]} 43. Ra1 {[%clk 0:00:31]}  Ra5 {[%clk 0:00:07]} 44. Rh6+ {[%clk 0:00:24]}  Kf7 {[%clk 0:00:07]} 45. f5 {[%clk 0:00:17]}  Rxc5 {[%clk 0:00:07]} 46. Rah1 {[%clk 0:00:17]}  Ra5 {[%clk 0:00:06]} 47. Rh7+ {[%clk 0:00:18]}  Rg7 {[%clk 0:00:06]} 48. Rxg7+ {[%clk 0:00:15]}  Kxg7 {[%clk 0:00:07]} 49. Kf4 {[%clk 0:00:15]}  Rxa3 {[%clk 0:00:07]} 50. Rh3 {[%clk 0:00:16]}  b5 {[%clk 0:00:05]} 51. e5 {[%clk 0:00:11]}  bxc4 {[%clk 0:00:03]} 52. f6+ {[%clk 0:00:12]}  Kf8 {[%clk 0:00:03]} 53. Rh8+ {[%clk 0:00:11]}  Kf7 {[%clk 0:00:03]} 54. Bxc4+ {[%clk 0:00:11]}  Kg6 {[%clk 0:00:04]} 55. Rg8+ {[%clk 0:00:11]}  Kh7 {[%clk 0:00:04]} 56. f7 {[%clk 0:00:11]}  Rf3+ {[%clk 0:00:04]} 57. Kg4 {[%clk 0:00:12]}  Rf2 {[%clk 0:00:04]} 58. f8=Q {[%clk 0:00:11]}  Bd7+ {[%clk 0:00:04]} 59. e6 {[%clk 0:00:11]}  Bxe6+ {[%clk 0:00:03]} 60. Bxe6 {[%clk 0:00:10]}  Rxf8 {[%clk 0:00:04]} 61. Rxf8 {[%clk 0:00:10]}  d3 {[%clk 0:00:05]} 62. Rd8 {[%clk 0:00:11]}  d2 {[%clk 0:00:05]} 1-0


[Site "https://www.chess.com"]